bitfinex/quotes_ETHUSD_20241018
["timestamp","ask_amount","ask_price","bid_price","bid_amount"]
[1729252000700,1.67072963,2625.0,2624.7,4.97695564]
[1729252000890,1.67072963,2625.0,2624.9,0.08204042]
[1729252001090,1.67072963,2625.0,2624.7,4.97695564]
[1729252001293,1.67072963,2625.0,2624.9,0.08204042]
[1729252001507,1.67072963,2625.0,2624.7,3.80994]
[1729252001798,1.67072963,2625.0,2624.9,0.08204042]
[1729252001953,1.67072963,2625.0,2624.8,0.08215484]
[1729252002152,1.67072963,2625.0,2624.9,0.08204042]
[1729252002582,1.67072963,2625.0,2624.7,3.80994]
[1729252002769,1.67072963,2625.0,2624.9,0.08204042]
[1729252002972,1.67072963,2625.0,2624.8,0.08215484]
[1729252003173,1.67072963,2625.0,2624.9,0.08204042]
[1729252003554,1.67072963,2625.0,2624.7,3.80994]
[1729252003753,1.67072963,2625.0,2624.9,0.08204042]
[1729252003954,1.67072963,2625.0,2624.8,0.08215484]
[1729252004184,1.67072963,2625.0,2624.9,0.08204042]
[1729252004591,1.67072963,2625.0,2624.7,3.80994]
[1729252004797,1.67072963,2625.0,2624.9,0.08204042]
[1729252005255,1.67072963,2625.0,2624.7,3.80994]
[1729252005456,1.67072963,2625.0,2624.9,0.08204042]
[1729252005682,1.67072963,2625.0,2624.7,3.80994]
[1729252005996,1.67072963,2625.0,2624.9,0.08204042]
[1729252006451,1.67072963,2625.0,2624.7,3.80994]
[1729252006653,1.67072963,2625.0,2624.9,0.08204042]
[1729252006884,1.67072963,2625.0,2624.7,3.80994]
[1729252007053,1.67072963,2625.0,2624.9,0.08204042]
[1729252007255,1.67072963,2625.0,2624.7,3.80994]
[1729252007455,1.67072963,2625.0,2624.9,0.08204042]
[1729252007701,1.67072963,2625.0,2624.7,3.80994]
[1729252007855,1.67072963,2625.0,2624.9,0.08202035]
[1729252008057,1.67072963,2625.0,2624.7,3.80994]
[1729252008359,1.67072963,2625.0,2624.9,0.08202035]
[1729252008860,1.67072963,2625.0,2624.7,3.80994]
[1729252009209,1.67072963,2624.9,2624.7,3.80994]
[1729252009408,1.67072963,2625.0,2624.6,4.56098]
[1729252009759,1.67072963,2624.9,2624.6,4.56098]
[1729252010098,1.67072963,2624.9,2624.6,5.67791449]
[1729252010521,1.67072963,2624.8,2624.6,1.86783449]
[1729252010719,1.67072963,2624.8,2624.6,0.7509]
[1729252012526,1.67072963,2624.9,2624.6,4.56098]
[1729252012685,5.48036963,2625.0,2624.6,4.56098]
[1729252013690,1.67072963,2625.0,2624.6,4.56098]
[1729252013892,1.67072963,2625.1,2624.8,4.6412]
[1729252014185,3.80933,2625.2,2624.8,5.486328]
[1729252014186,3.80931,2625.2,2624.8,5.486328]
[1729252014353,1.67072963,2625.1,2624.8,5.486328]
[1729252014635,1.67072963,2625.0,2624.8,1.676528]
[1729252014836,1.67072963,2625.1,2624.8,1.676528]
[1729252019169,3.80931,2625.2,2624.8,5.486308]
[1729252019443,1.67072963,2625.1,2624.8,5.486308]
[1729252019645,5.48003963,2625.2,2624.9,0.6685543]
[1729252019847,1.67072963,2625.1,2624.9,0.6685543]
[1729252020062,5.48003963,2625.2,2624.9,0.6685543]
[1729252020357,5.48003963,2625.2,2624.8,5.486308]
[1729252020535,5.48003963,2625.2,2624.8,1.676528]
[1729252020741,5.48003963,2625.2,2624.8,5.486328]
[1729252021049,5.48003963,2625.2,2624.9,0.08198219]
[1729252021347,1.67072963,2625.2,2624.9,3.89158219]
[1729252021557,1.67072963,2625.2,2624.9,4.5683167]
[1729252021709,10.11362963,2625.3,2624.9,0.7587167]
[1729252022047,1.67072963,2625.2,2624.9,0.7587167]
[1729252022508,5.47982963,2625.3,2624.9,4.5683767]
[1729252022712,1.67072963,2625.2,2625.0,0.53997767]
[1729252022907,3.8091,2625.3,2625.0,0.62184544]
[1729252022908,5.47982963,2625.3,2625.0,0.62184544]
[1729252023143,1.67072963,2625.3,2625.0,0.62184544]
[1729252023339,0.8105,2625.5,2625.0,0.62184544]
[1729252023647,0.8105,2625.5,2625.1,4.63111]
[1729252023648,1.67072963,2625.5,2625.1,4.63111]
[1729252023848,1.67072963,2625.5,2625.2,0.52529554]
[1729252024375,5.47980963,2625.3,2625.2,0.08159278]
[1729252024651,5.47962963,2625.5,2625.2,0.08159278]
[1729252024858,1.67072963,2625.4,2625.0,3.8095]
[1729252025153,0.7854,2625.6,2625.2,3.8907407]
[1729252025154,1.67072963,2625.6,2625.2,3.8907407]
[1729252025345,1.67072963,2625.7,2625.4,0.7638]
[1729252025573,3.80845,2625.8,2625.4,0.7638]
[1729252025780,1.67072963,2625.6,2625.5,0.08122755]
[1729252026584,5.47923963,2625.7,2625.5,0.08122755]
[1729252026937,6.25442963,2625.9,2625.5,0.08122755]
[1729252027138,1.67072963,2625.8,2625.5,0.08122755]
[1729252027347,5.47902963,2625.9,2625.5,3.89001755]
[1729252027640,5.47910963,2625.8,2625.5,0.08122755]
[1729252029680,1.67072963,2625.9,2625.5,4.7363153]
[1729252029838,5.47898963,2625.9,2625.5,4.7363153]
[1729252030481,1.67072963,2626.0,2625.6,3.80859]
[1729252030636,1.67072963,2626.0,2625.7,0.85448053]
[1729252030839,1.67072963,2625.9,2625.8,0.08071187]
[1729252031068,1.67072963,2625.9,2625.6,0.7638]
[1729252031269,1.67072963,2625.9,2625.8,0.08071187]
[1729252031479,1.67072963,2625.9,2625.6,4.57243]
[1729252031696,1.67072963,2625.9,2625.8,0.08071187]
[1729252031892,1.67072963,2625.9,2625.7,0.08082622]
[1729252032087,1.67072963,2625.9,2625.6,4.57243]
[1729252032384,1.67072963,2625.9,2625.8,0.08071187]
[1729252032556,1.67072963,2625.9,2625.7,0.08082622]
[1729252032752,1.67072963,2625.9,2625.8,0.08071187]
[1729252033204,1.67072963,2625.9,2625.7,0.5499554]
[1729252033406,1.67072963,2625.9,2625.8,0.08071187]
[1729252033756,1.67072963,2625.9,2625.7,0.5499554]
[1729252033956,1.67072963,2625.9,2625.8,0.08071187]
[1729252034305,5.47887963,2626.0,2625.7,0.5499554]
[1729252034504,1.67072963,2625.9,2625.8,0.59295041]
[1729252034721,5.47893963,2625.9,2625.8,0.08071187]
[1729252035012,3.80887,2625.5,2625.2,1.19923496]
[1729252035169,1.67072963,2625.3,2625.1,0.8]
[1729252035375,1.67072963,2625.3,2624.9,4.66675494]
[1729252035571,5.47983963,2625.3,2625.0,4.58659899]
[1729252035753,1.67072963,2625.3,2625.0,0.58659899]
[1729252035954,3.80902,2625.4,2625.0,0.58659899]
[1729252035955,3.80902,2625.4,2625.0,4.39610899]
[1729252036201,5.47974963,2625.4,2625.1,0.08142017]
[1729252036557,1.67072963,2625.4,2625.1,0.08142017]
[1729252036772,1.67072963,2625.4,2625.1,1.11577208]
[1729252037587,5.47959963,2625.5,2625.1,4.92514208]
[1729252039103,3.80875,2625.6,2625.2,4.67479619]
[1729252039104,1.67072963,2625.6,2625.2,4.67479619]
[1729252039311,1.67072963,2625.6,2625.2,4.75616618]
[1729252039460,1.67072963,2625.6,2625.3,0.95997981]
[1729252039664,5.47937963,2625.6,2625.3,1.04123541]
[1729252041073,1.67072963,2625.5,2625.3,1.04123541]
[1729252041305,2.43982963,2625.9,2625.3,2.71196504]
[1729252041618,5.47929963,2625.7,2625.4,0.7310585]
[1729252041786,1.67072963,2625.5,2625.3,0.0812556]
[1729252041984,1.67072963,2625.5,2625.1,3.80926]
[1729252041985,4.57775,2625.6,2625.5,0.08094016]
[1729252042312,3.80851,2625.7,2625.5,0.08094016]
[1729252042517,3.80851,2625.7,2625.3,3.80906]
[1729252042667,3.80851,2625.7,2625.6,0.0808258]
[1729252042867,3.80851,2625.7,2625.3,3.80906]
[1729252043072,3.80851,2625.7,2625.6,0.0808258]
[1729252043314,3.80851,2625.7,2625.3,3.80906]
[1729252043515,3.80851,2625.7,2625.6,0.0808258]
[1729252043712,3.80851,2625.7,2625.3,3.80905]
[1729252043917,3.80851,2625.7,2625.6,0.0808258]
[1729252044073,5.47923963,2625.7,2625.3,3.80905]
[1729252044276,5.47923963,2625.7,2625.6,0.0808258]
[1729252044475,5.47923963,2625.7,2625.3,3.80905]
[1729252044700,1.67072963,2625.7,2625.6,0.0808258]
[1729252044871,1.67072963,2625.8,2625.2,4.59849]
[1729252045085,2.43982963,2625.9,2625.6,0.0808258]
[1729252045290,1.67072963,2626.0,2625.6,4.60714]
[1729252045615,1.67072963,2625.9,2625.7,0.08070944]
[1729252048182,1.67072963,2625.8,2625.7,0.08070944]
[1729252048890,6.29758963,2625.8,2625.7,0.08070944]
[1729252049199,2.48922963,2625.8,2625.4,3.80893]
[1729252049403,0.8185,2625.8,2625.7,0.08070944]
[1729252049597,0.8185,2625.8,2625.5,0.8077759]
[1729252049810,3.80809,2626.0,2625.7,0.08070944]
[1729252050011,1.67072963,2625.8,2625.6,0.08082379]
[1729252050231,1.67072963,2625.9,2625.6,4.74556249]
[1729252050528,3.80799,2626.1,2625.6,4.74550249]
[1729252050830,5.47881963,2626.0,2625.6,4.74550249]
[1729252051328,5.47882963,2626.0,2625.7,0.08068736]
[1729252051531,1.67072963,2626.0,2625.7,0.08068736]
[1729252051836,5.47880963,2626.0,2625.7,0.08068736]
[1729252051990,1.67072963,2626.0,2625.7,0.08068736]
[1729252052195,1.67072963,2626.0,2625.7,3.88916736]
[1729252052637,5.47865963,2626.1,2625.7,3.88916736]
[1729252052803,5.47865963,2626.1,2625.7,5.00031831]
[1729252052996,0.7561,2626.2,2625.7,5.00025831]
[1729252053201,5.47851963,2626.2,2625.8,4.62969]
[1729252053603,1.67072963,2626.1,2625.9,0.08040447]
[1729252053806,5.47851963,2626.2,2625.9,0.08040447]
[1729252054312,5.47871963,2626.1,2625.9,0.08040447]
[1729252054831,1.67072963,2626.1,2625.9,0.08040447]
[1729252055036,5.47853963,2626.2,2625.9,0.55142892]
[1729252055335,5.47853963,2626.2,2625.9,0.08040447]
[1729252056189,1.67072963,2626.2,2625.9,0.08040447]
[1729252056401,3.80765,2626.3,2625.9,3.88861447]
[1729252056705,3.80732,2626.6,2626.0,3.88421592]
[1729252056893,3.80703,2626.8,2626.2,3.80771]
[1729252057092,1.67072963,2626.6,2626.2,3.80771]
[1729252057331,4.60453,2626.8,2626.3,3.88745905]
[1729252057741,4.60453,2626.8,2626.4,0.7977]
[1729252057742,3.80703,2626.8,2626.4,0.7977]
[1729252057944,3.80703,2626.8,2626.4,4.68494476]
[1729252058229,1.67072963,2626.8,2626.5,3.80734]
[1729252058428,8.41093,2627.0,2626.5,3.80734]
[1729252058429,1.67072963,2626.9,2626.5,3.80734]
[1729252058737,10.08165963,2627.0,2626.6,0.07948598]
[1729252058937,5.47721963,2627.1,2626.7,0.7714]
[1729252059106,3.80628,2627.3,2626.7,0.85072759]
[1729252059307,7.35,2627.6,2627.1,4.57785]
[1729252059643,1.67072963,2627.6,2627.1,8.841995]
[1729252059849,3.80562,2627.7,2627.2,3.88507637]
[1729252060132,5.47634963,2627.7,2627.2,3.88507637]
[1729252060339,1.67072963,2627.7,2627.2,0.07875637]
[1729252060522,3.80554,2627.8,2627.3,9.35912378]
[1729252060690,1.67072963,2627.8,2627.4,3.80603]
[1729252060887,5.47619963,2627.8,2627.5,0.7851]
[1729252061091,5.47619963,2627.8,2627.5,0.86350773]
[1729252061386,0.8019,2628.1,2627.5,0.86350773]
[1729252061591,3.80521,2628.0,2627.6,0.07610745]
[1729252061791,3.80521,2628.0,2627.5,0.86350773]
[1729252062007,4.27185083,2628.0,2627.7,0.07800094]
[1729252062231,5.42808108,2628.0,2627.6,0.07811512]
[1729252062436,5.42808108,2628.0,2627.8,0.07788676]
[1729252062631,5.42808108,2628.0,2627.7,0.07800094]
[1729252062632,9.23338108,2628.0,2627.7,0.07800094]
[1729252062928,9.23335108,2628.0,2627.8,0.07755343]
[1729252063164,0.96229934,2627.9,2627.2,3.80624]
[1729252063324,3.80554,2627.8,2627.3,4.61848]
[1729252063877,3.80534,2627.9,2627.5,0.05710017]
[1729252064224,3.80548,2627.8,2627.5,0.05710017]
[1729252066567,3.80561,2627.7,2627.3,0.8123]
[1729252066800,7.61104,2627.8,2627.3,0.8123]
[1729252066976,3.80548,2627.8,2627.3,0.8123]
[1729252067524,3.80548,2627.8,2627.3,4.61847]
[1729252068369,3.80526,2628.0,2627.3,1.654771]
[1729252068578,3.80532,2627.9,2627.4,3.80595]
[1729252068745,3.80526,2628.0,2627.4,3.80595]
[1729252069140,3.80526,2628.0,2627.3,0.8123]
[1729252069141,3.80555,2627.8,2627.3,0.8123]
[1729252069455,3.80555,2627.8,2627.3,4.6184]
[1729252070136,4.60693,2628.1,2627.4,3.80604]
[1729252070336,4.60693,2628.1,2627.5,4.267594]
[1729252070601,4.60693,2628.1,2627.5,4.34505893]
[1729252070910,0.8019,2628.1,2627.5,0.53929893]
[1729252071198,3.80526,2628.0,2627.5,4.34517893]
[1729252071545,7.61052,2628.0,2627.6,0.05709744]
[1729252071749,7.61052,2628.0,2627.6,0.13444818]
[1729252071978,3.80534,2627.9,2627.6,0.13444818]
[1729252074890,3.80526,2628.0,2627.6,0.13444818]
[1729252075101,3.80547,2627.8,2627.6,0.13444818]
[1729252075954,4.63920731,2627.9,2627.6,0.13444818]
[1729252076154,3.80553,2627.8,2627.6,0.13444818]
[1729252076354,7.61107,2627.8,2627.6,0.13444818]
[1729252076554,3.8056,2627.7,2627.6,0.13444818]
[1729252077399,3.80553,2627.8,2627.6,0.13444818]
[1729252078484,3.80526,2628.0,2627.6,0.13444818]
[1729252078805,0.8019,2628.1,2627.6,0.13444818]
[1729252078986,3.80518,2628.0,2627.6,0.13444818]
[1729252080556,5.44066931,2628.1,2627.7,0.07610329]
[1729252080757,5.44066931,2628.1,2627.7,0.15333384]
[1729252080958,0.8019,2628.1,2627.8,3.80544]
[1729252081313,0.8019,2628.1,2627.8,0.07711638]
[1729252081461,3.80496,2628.2,2627.8,0.07711638]
[1729252081663,3.80496,2628.2,2627.7,3.80551]
[1729252081902,3.80496,2628.2,2627.9,0.07696215]
[1729252082095,3.80496,2628.2,2627.8,0.07707631]
[1729252082408,3.80496,2628.2,2627.7,7.61104]
[1729252082409,3.80496,2628.2,2627.9,0.07694612]
[1729252082603,3.80504,2628.1,2627.9,0.07694612]
[1729252082764,3.80504,2628.1,2627.7,3.80551]
[1729252082765,7.60993,2628.2,2627.7,3.80551]
[1729252082958,7.60993,2628.2,2628.0,0.07683196]
[1729252083157,3.80496,2628.2,2627.7,3.80551]
[1729252083393,7.60993,2628.2,2628.1,0.07671781]
[1729252083597,8.74396431,2628.2,2627.7,3.80551]
[1729252083793,7.60993,2628.2,2628.1,0.07671781]
[1729252083973,5.47432453,2628.2,2627.7,3.80551]
[1729252084161,1.66936453,2628.1,2627.7,3.80551]
[1729252085395,1.66936453,2628.2,2627.8,3.88150931]
[1729252085988,5.47428453,2628.2,2627.8,0.07609931]
[1729252086189,5.47428453,2628.2,2627.7,3.80551]
[1729252086695,1.66936453,2628.1,2627.8,0.7908]
[1729252086900,7.36962453,2628.1,2627.8,0.7908]
[1729252087305,3.56456453,2628.1,2627.8,0.7908]
[1729252088029,3.56456453,2628.1,2627.8,4.59623]
[1729252089365,3.56456453,2628.1,2627.8,0.7908]
[1729252089915,1.66936453,2628.1,2627.8,0.7908]
[1729252090222,3.80452,2628.5,2627.9,0.7722]
[1729252090421,7.60905,2628.5,2628.1,0.7722]
[1729252090624,1.66936453,2628.4,2628.1,0.7722]
[1729252090776,5.47388453,2628.5,2628.1,4.57722]
[1729252090977,1.66936453,2628.5,2628.2,3.80487]
[1729252091199,1.66936453,2628.5,2628.2,7.60967]
[1729252091416,11.97945,2628.7,2628.2,3.8048]
[1729252091613,3.80413,2628.8,2628.4,3.80459]
[1729252091773,1.66936453,2628.8,2628.4,3.80459]
[1729252091976,1.66936453,2628.7,2628.3,3.80473]
[1729252092481,5.47352453,2628.7,2628.2,8.0573]
[1729252092676,1.66936453,2628.6,2628.2,4.2525]
[1729252092995,1.66936453,2628.6,2628.2,8.05729]
[1729252093207,1.66936453,2628.6,2628.2,4.25249]
[1729252093949,1.66936453,2628.6,2628.3,0.778]
[1729252094534,1.66936453,2628.5,2628.3,0.778]
[1729252095545,1.66936453,2628.6,2628.3,0.778]
[1729252096036,3.80446,2628.5,2628.4,0.07626724]
[1729252096397,3.80446,2628.5,2628.1,0.7608]
[1729252096600,1.66936453,2628.4,2628.2,0.07649549]
[1729252096897,5.47382453,2628.5,2628.2,0.07649549]
[1729252099512,1.66936453,2628.3,2628.2,0.07649549]
[1729252099707,4.55884,2628.3,2628.2,0.07649549]
[1729252099906,7.06455853,2628.3,2628.2,0.07649549]
[1729252100101,3.80503,2628.1,2628.0,0.05708908]
[1729252100532,5.47439453,2628.1,2628.0,0.13111894]
[1729252100762,5.47439453,2628.1,2628.0,0.05708908]
[1729252100963,5.47439453,2628.1,2628.0,0.13111894]
[1729252101129,5.47439453,2628.1,2628.0,0.13115879]
[1729252101970,3.80503,2628.1,2628.0,0.13115879]
[1729252102326,3.80503,2628.1,2628.0,0.07406971]
[1729252102528,5.5284684,2628.1,2628.0,0.07406971]
[1729252102728,3.80586,2627.6,2627.3,0.8106]
[1729252102928,3.80586,2627.6,2627.4,0.07479664]
[1729252104144,3.80584,2627.6,2627.4,0.07479664]
[1729252104959,0.8034,2627.7,2627.4,0.07479664]
[1729252105462,4.609,2627.7,2627.4,0.07479664]
[1729252105874,4.60105,2628.0,2627.4,0.73999602]
[1729252106077,3.80539,2627.9,2627.6,0.8068]
[1729252106279,3.80525,2628.0,2627.6,0.8068]
[1729252106280,3.80518,2628.0,2627.6,0.8068]
[1729252106568,3.80518,2628.0,2627.7,0.07452185]
[1729252106927,7.61049,2628.0,2627.7,0.07452185]
[1729252108747,3.80518,2628.0,2627.7,0.07452185]
[1729252108968,3.80546,2627.8,2627.7,0.07452185]
[1729252109168,4.60126,2627.8,2627.7,0.07452185]
[1729252109331,3.80565,2627.7,2627.4,0.8068]
[1729252111074,3.80565,2627.7,2627.5,0.07475022]
[1729252112642,4.60127,2627.8,2627.5,0.07475022]
[1729252115676,11.60271524,2628.7,2627.5,0.07475022]
[1729252115677,3.80484,2628.3,2627.6,0.84781181]
[1729252115883,0.7673,2628.6,2627.6,0.84781181]
[1729252115884,3.8047,2628.4,2627.9,3.80529]
[1729252116049,3.80446,2628.5,2628.0,4.57686]
[1729252116250,3.80446,2628.5,2628.0,0.92212986]
[1729252116457,3.80446,2628.5,2628.0,4.72721986]
[1729252116967,3.80446,2628.5,2628.0,4.65112282]
[1729252117495,3.80446,2628.5,2628.1,3.805]
[1729252117846,3.80446,2628.5,2628.2,0.07406665]
[1729252118588,0.7673,2628.6,2628.2,0.07406665]
[1729252118746,4.57161,2628.6,2628.2,0.07406665]
[1729252120860,3.80445,2628.5,2628.2,0.07406665]
[1729252123204,3.80474,2628.3,2628.2,0.07406665]
[1729252123586,3.80474,2628.3,2627.8,4.59745]
[1729252123788,3.80474,2628.3,2628.2,0.07394106]
[1729252124420,3.80474,2628.3,2627.8,4.59745]
[1729252124568,3.80474,2628.3,2628.2,0.07394504]
[1729252125265,3.80474,2628.3,2627.8,4.59745]
[1729252125992,3.80474,2628.3,2627.9,0.07428749]
[1729252127879,0.8161,2628.2,2627.9,0.07428749]
[1729252128336,4.621,2628.2,2627.9,0.07428749]
[1729252129519,0.8161,2628.2,2627.9,0.07428749]
[1729252129827,3.80504,2628.1,2627.9,0.07428749]
[1729252131840,5.47440624,2628.1,2627.9,0.07428749]
[1729252132507,3.80504,2628.1,2627.9,0.07428749]
[1729252132702,5.47440624,2628.1,2627.9,0.07428749]
[1729252132926,3.80504,2628.1,2627.9,0.07428749]
[1729252134804,5.47440624,2628.1,2627.9,0.07428749]
[1729252135008,5.47453624,2628.0,2627.9,0.07428749]
[1729252135333,6.23513624,2628.0,2627.9,0.07428749]
[1729252135735,6.23513624,2628.0,2627.7,0.05709523]
[1729252135899,1.66936624,2627.8,2627.7,0.05709523]
[1729252136595,5.47480624,2627.9,2627.7,0.05709523]
[1729252136836,9.28023624,2627.9,2627.7,0.05709523]
[1729252137538,9.28021624,2627.9,2627.7,0.05709523]
[1729252138245,5.47478624,2627.9,2627.7,0.05709523]
[1729252138546,9.28018624,2627.9,2627.7,0.05709523]
[1729252140242,5.47482624,2627.8,2627.7,0.05709523]
[1729252141053,5.47482624,2627.8,2627.7,0.13167486]
[1729252142808,6.27462624,2627.8,2627.7,0.07457963]
[1729252143021,6.27462624,2627.8,2626.8,1.52631365]
[1729252143022,3.80599,2627.5,2627.0,4.56859]
[1729252143249,9.28134624,2627.5,2627.1,0.07526485]
[1729252143411,5.47541624,2627.4,2627.1,0.07526485]
[1729252143744,1.66936624,2627.2,2627.1,0.07526485]
[1729252144053,3.80619,2627.3,2627.1,0.07526485]
[1729252144054,9.28184624,2627.3,2627.1,0.07526485]
[1729252144347,5.47555624,2627.3,2627.1,0.07526485]
[1729252144658,1.66936624,2627.2,2627.1,0.07526485]
[1729252148146,5.47569624,2627.2,2627.1,0.07526485]
[1729252148542,5.47569624,2627.2,2626.9,0.05711215]
[1729252148721,5.47569624,2627.2,2627.1,0.07526485]
[1729252148927,5.47569624,2627.2,2627.0,0.07537908]
[1729252149140,5.47569624,2627.2,2627.1,0.07526485]
[1729252149525,5.47569624,2627.2,2626.9,0.05711215]
[1729252149855,1.66936624,2627.1,2627.0,0.07537908]
[1729252150823,5.47583624,2627.1,2627.0,0.07537908]
[1729252151025,6.88459159,2627.1,2627.0,0.07537908]
[1729252151237,2.42616624,2627.1,2627.0,0.07537908]
[1729252152642,6.23263624,2627.1,2627.0,0.07537908]
[1729252153466,1.66936624,2627.1,2627.0,0.07537908]
[1729252157466,5.47583624,2627.1,2627.0,0.07537908]
[1729252158567,1.66936624,2627.1,2627.0,0.07537908]
[1729252160324,5.47583624,2627.1,2627.0,0.07537908]
[1729252163684,1.66936624,2627.1,2627.0,0.07537908]
[1729252165247,5.47583624,2627.1,2627.0,0.07537908]
[1729252167253,6.24003624,2627.1,2627.0,0.07537908]
[1729252167454,6.24003624,2627.1,2626.8,1.46013239]
[1729252167652,1.66936624,2626.9,2626.8,1.46013239]
[1729252168690,3.80663,2627.0,2626.8,1.46013239]
[1729252168691,1.66936624,2627.0,2626.8,1.46013239]
[1729252170491,1.66936624,2626.9,2626.8,1.46013239]
[1729252170691,1.66936624,2627.0,2626.8,1.46013239]
[1729252171188,1.66936624,2627.0,2626.9,0.07328556]
[1729252172701,0.7642,2627.3,2626.9,0.07328556]
[1729252172858,5.47559624,2627.3,2627.0,0.7634]
[1729252173053,5.47559624,2627.3,2627.1,0.07306505]
[1729252173269,3.80623,2627.3,2627.1,0.07306505]
[1729252173478,1.66936624,2627.3,2627.1,0.07306505]
[1729252173695,1.66936624,2627.4,2627.1,0.56031374]
[1729252173854,1.66936624,2627.3,2627.1,0.56031374]
[1729252175556,3.80577,2627.6,2627.1,4.36672374]
[1729252176115,1.66936624,2627.4,2627.2,0.89366837]
[1729252176481,1.66936624,2627.4,2627.3,0.07283661]
[1729252176694,1.66936624,2627.4,2627.2,0.89366837]
[1729252176889,1.66936624,2627.4,2627.3,0.07283661]
[1729252177122,1.66936624,2627.4,2627.2,0.89366837]
[1729252177295,1.66936624,2627.4,2627.3,0.07283661]
[1729252177614,1.66936624,2627.4,2627.2,0.89366837]
[1729252177830,1.66936624,2627.4,2627.3,0.07283661]
[1729252178123,1.66936624,2627.4,2627.2,0.89366837]
[1729252178295,1.66936624,2627.4,2627.3,0.07283661]
[1729252178482,1.66936624,2627.4,2627.2,0.89366837]
[1729252178818,1.66936624,2627.4,2627.3,0.07283661]
[1729252179120,1.66936624,2627.4,2627.2,0.89366837]
[1729252179318,1.66936624,2627.4,2627.3,0.07283661]
[1729252179779,5.47541624,2627.4,2627.2,0.89366837]
[1729252179979,3.80596,2627.5,2627.3,0.07283661]
[1729252180212,1.66936624,2627.4,2627.3,0.07283661]
[1729252180419,1.66936624,2627.4,2627.1,0.48724869]
[1729252180604,3.80596,2627.5,2627.3,0.07283661]
[1729252180787,3.80596,2627.5,2627.2,0.07295083]
[1729252180992,1.66936624,2627.3,2627.1,0.48724869]
[1729252181191,1.66936624,2627.4,2627.2,8.64507099]
[1729252181507,1.66936624,2627.3,2627.2,8.64507099]
[1729252182518,1.66936624,2627.4,2627.2,8.64507099]
[1729252183331,5.47527624,2627.5,2627.2,8.64507099]
[1729252183529,1.66936624,2627.4,2627.2,8.64507099]
[1729252183728,1.66936624,2627.4,2627.3,1.03276857]
[1729252184120,0.8192,2627.7,2627.3,8.63516857]
[1729252184326,1.66936624,2627.5,2627.3,8.63516857]
[1729252185337,1.66936624,2627.5,2627.3,7.6124]
[1729252186312,1.66936624,2627.5,2627.4,0.0726765]
[1729252191135,1.66936624,2627.6,2627.4,0.0726765]
[1729252191437,5.47498624,2627.7,2627.4,0.0726765]
[1729252191640,1.66936624,2627.6,2627.4,0.0726765]
[1729252191800,5.47498624,2627.7,2627.4,0.0726765]
[1729252192008,1.66936624,2627.6,2627.4,0.0726765]
[1729252193156,5.47498624,2627.7,2627.4,0.0726765]
[1729252193457,5.47498624,2627.7,2627.5,7.6118]
[1729252193748,5.47498624,2627.7,2627.6,0.07244811]
[1729252194831,1.66936624,2627.7,2627.6,0.07244811]
[1729252201223,6.10010886,2627.7,2627.6,0.07244811]
[1729252203569,1.66936624,2627.7,2627.6,0.07244811]
[1729252207628,5.47496624,2627.7,2627.6,0.07244811]
[1729252208939,6.29466624,2627.7,2627.6,0.07244811]
[1729252214503,6.29466624,2627.7,2627.5,7.6118]
[1729252214703,6.28881624,2627.6,2627.5,7.6118]
[1729252214906,7.67880386,2627.6,2627.5,7.6118]
[1729252216111,7.67880386,2627.6,2627.5,7.68435433]
[1729252216490,9.3481701,2627.6,2627.5,7.68435433]
[1729252216780,7.67880386,2627.6,2627.5,7.68435433]
[1729252220686,6.00943762,2627.6,2627.5,7.68435433]
[1729252220906,1.66936624,2627.7,2627.5,7.68435433]
[1729252221311,1.66936624,2627.6,2627.5,7.68435433]
[1729252222718,1.66936624,2627.6,2627.5,8.43455433]
[1729252228067,1.66936624,2627.6,2627.5,7.68435433]
[1729252231688,1.66936624,2627.7,2627.5,7.68435433]
[1729252231890,1.66936624,2627.7,2627.5,9.28902776]
[1729252232072,1.66936624,2627.6,2627.5,9.28902776]
[1729252234082,8.40395,2628.0,2627.6,3.80575]
[1729252234386,1.66936624,2627.8,2627.7,0.07234393]
[1729252234818,1.66936624,2627.8,2627.7,3.87794393]
[1729252235002,1.66936624,2627.8,2627.7,5.64985367]
[1729252235327,1.66936624,2627.8,2627.7,13.26105367]
[1729252235787,1.66936624,2627.8,2627.7,9.45545367]
[1729252237145,1.66936624,2627.8,2627.7,7.68354393]
[1729252237336,6.23022624,2627.8,2627.7,7.68354393]
[1729252237518,8.31261311,2627.8,2627.7,7.6112]
[1729252237697,8.72365835,2627.8,2627.7,7.6810383]
[1729252238326,6.23022624,2627.8,2627.7,7.6810383]
[1729252238541,9.07208573,2627.8,2627.7,7.6810383]
[1729252238915,9.08208573,2627.8,2627.7,7.6810383]
[1729252239142,9.08208573,2627.8,2627.7,7.6112]
[1729252239342,5.73335325,2627.8,2627.7,7.6112]
[1729252239548,5.73335325,2627.8,2627.7,7.68107999]
[1729252239795,7.40271949,2627.8,2627.7,7.68107999]
[1729252239920,5.73335325,2627.8,2627.7,7.68107999]
[1729252240612,7.40271949,2627.8,2627.7,7.68107999]
[1729252241753,9.07208573,2627.8,2627.7,7.68107999]
[1729252241907,7.40271949,2627.8,2627.7,7.68107999]
[1729252246375,7.81574012,2627.8,2627.7,7.68107999]
[1729252247689,9.50510636,2627.8,2627.7,0.04276897]
[1729252247838,9.09208573,2627.8,2627.7,7.99e-06]
[1729252248182,4.57657,2627.1,2627.0,1.46002123]
[1729252248346,5.414862,2627.1,2627.0,1.46002123]
[1729252248968,7.08422824,2627.1,2627.0,1.46002123]
[1729252249187,7.09422824,2627.1,2627.0,1.46002123]
[1729252250689,7.09422824,2627.1,2626.0,4.61775]
[1729252250690,0.7539,2627.0,2626.0,4.61775]
[1729252250844,1.66936624,2626.3,2626.1,0.461775]
[1729252251174,1.66936624,2626.3,2626.1,0.06873427]
[1729252253651,1.66936624,2626.2,2626.1,1.52925587]
[1729252253869,1.66936624,2626.3,2626.1,1.52925587]
[1729252254591,3.80751,2626.4,2626.1,1.52925587]
[1729252254592,1.66936624,2626.2,2626.1,1.52925587]
[1729252257304,1.66936624,2626.3,2626.1,1.52925587]
[1729252261594,1.66936624,2626.4,2626.1,1.52925587]
[1729252261926,0.32715582,2626.9,2626.1,1.52925587]
[1729252261927,5.47671624,2626.5,2626.1,4.49129486]
[1729252262240,1.66936624,2626.4,2626.1,0.68343486]
[1729252262382,1.66936624,2626.4,2626.1,0.06873427]
[1729252263622,5.47714624,2626.2,2626.1,0.06873427]
[1729252264195,5.47714624,2626.2,2625.8,0.7768]
[1729252264424,1.66936624,2626.0,2625.8,0.7768]
[1729252265995,5.47736624,2626.1,2625.8,0.7768]
[1729252267199,5.47736624,2626.1,2625.9,7.6163]
[1729252267398,1.66936624,2626.1,2625.9,7.6163]